[Event "*** Titled Tuesday Blitz"]
[Site "Chess.com"]
[Date "2020.04.14"]
[Round "2"]
[White "MikaelyanArman"]
[Black "LuckSlayeer"]
[Result "0-1"]
[WhiteElo "2818"]
[BlackElo "2587"]
[TimeControl "180+1"]
[EndTime "10:17:21 PDT"]
[Termination "LuckSlayeer won by resignation"]

1. Nf3 {[%clk 0:03:00.9]} 1... d5 {[%clk 0:02:57.1]} 2. d4 {[%clk 0:02:59.9]}
2... Nf6 {[%clk 0:02:57]} 3. c4 {[%clk 0:03:00.2]} 3... c6 {[%clk 0:02:54.9]} 4.
Nc3 {[%clk 0:03:00.3]} 4... e6 {[%clk 0:02:54.9]} 5. g3 {[%clk 0:02:59.9]} 5...
Nbd7 {[%clk 0:02:55.5]} 6. Bg2 {[%clk 0:03:00]} 6... Be7 {[%clk 0:02:55.6]} 7.
O-O {[%clk 0:02:59.7]} 7... O-O {[%clk 0:02:55.3]} 8. Nd2 {[%clk 0:03:00]} 8...
b6 {[%clk 0:02:52.2]} 9. e4 {[%clk 0:03:00]} 9... dxe4 {[%clk 0:02:52.5]} 10.
Ndxe4 {[%clk 0:03:00.9]} 10... Bb7 {[%clk 0:02:50.9]} 11. Be3 {[%clk 0:02:59.1]}
11... Nxe4 {[%clk 0:02:48.1]} 12. Nxe4 {[%clk 0:03:00]} 12... Nf6 {[%clk
0:02:47.4]} 13. Rc1 {[%clk 0:02:53.9]} 13... Qc8 {[%clk 0:02:39.8]} 14. Nxf6+
{[%clk 0:02:48.6]} 14... Bxf6 {[%clk 0:02:40]} 15. c5 {[%clk 0:02:47.2]} 15...
Rd8 {[%clk 0:02:36.1]} 16. Qa4 {[%clk 0:02:39]} 16... b5 {[%clk 0:02:25]} 17.
Qb4 {[%clk 0:02:33.8]} 17... a5 {[%clk 0:02:24.3]} 18. Qb3 {[%clk 0:01:54.9]}
18... Bxd4 {[%clk 0:02:19.3]} 19. Rfd1 {[%clk 0:01:49.5]} 19... Bxe3 {[%clk
0:02:14]} 20. Qxe3 {[%clk 0:01:50.4]} 20... Qc7 {[%clk 0:02:12.2]} 21. h4 {[%clk
0:01:44.4]} 21... Rxd1+ {[%clk 0:02:08]} 22. Rxd1 {[%clk 0:01:45.3]} 22... Rd8
{[%clk 0:02:08.5]} 23. Re1 {[%clk 0:01:20.7]} 23... b4 {[%clk 0:02:02.7]} 24. g4
{[%clk 0:01:13.4]} 24... Ba6 {[%clk 0:02:00.4]} 25. g5 {[%clk 0:01:07.9]} 25...
Bc4 {[%clk 0:01:56.7]} 26. h5 {[%clk 0:01:01.4]} 26... Bd5 {[%clk 0:01:47]} 27.
Bh3 {[%clk 0:00:38.6]} 27... g6 {[%clk 0:01:35.5]} 28. h6 {[%clk 0:00:38.6]}
28... Bc4 {[%clk 0:01:19.4]} 29. b3 {[%clk 0:00:37.1]} 29... Rd3 {[%clk
0:01:13]} 30. Qe5 {[%clk 0:00:03.8]} 30... Qxe5 {[%clk 0:01:00.3]} 31. Rxe5
{[%clk 0:00:04.7]} 31... Rxh3 {[%clk 0:01:00.3]} 32. bxc4 {[%clk 0:00:04.9]}
32... Kf8 {[%clk 0:00:55]} 33. Re2 {[%clk 0:00:02.5]} 33... Rd3 {[%clk
0:00:52.6]} 34. Kg2 {[%clk 0:00:02]} 34... Ke7 {[%clk 0:00:52.1]} 35. f3 {[%clk
0:00:02]} 35... Rd4 {[%clk 0:00:52.4]} 36. Kg3 {[%clk 0:00:02.4]} 36... Rxc4
{[%clk 0:00:52.8]} 37. Rd2 {[%clk 0:00:02.6]} 37... Rxc5 {[%clk 0:00:53.1]} 38.
f4 {[%clk 0:00:03.3]} 38... Rd5 {[%clk 0:00:53]} 39. Rc2 {[%clk 0:00:03.6]}
39... c5 {[%clk 0:00:53.5]} 40. Kg4 {[%clk 0:00:04.5]} 40... a4 {[%clk
0:00:52.9]} 41. Re2 {[%clk 0:00:04.2]} 41... c4 {[%clk 0:00:52.6]} 42. Re4
{[%clk 0:00:04.3]} 42... Rc5 {[%clk 0:00:53.1]} 43. Re1 {[%clk 0:00:04]} 43...
b3 {[%clk 0:00:53.5]} 44. axb3 {[%clk 0:00:04]} 44... axb3 {[%clk 0:00:54]} 45.
Ra1 {[%clk 0:00:04.3]} 45... b2 {[%clk 0:00:53.5]} 46. Ra7+ {[%clk 0:00:04.7]}
46... Ke8 {[%clk 0:00:53.7]} 47. Rb7 {[%clk 0:00:05.6]} 47... c3 {[%clk
0:00:53.6]} 48. Rb8+ {[%clk 0:00:05.5]} 48... Ke7 {[%clk 0:00:53.7]} 49. Rb7+
{[%clk 0:00:06.4]} 49... Ke8 {[%clk 0:00:54.2]} 50. Rb8+ {[%clk 0:00:06.8]}
50... Kd7 {[%clk 0:00:54.9]} 51. Rb7+ {[%clk 0:00:07.7]} 51... Rc7 {[%clk
0:00:55]} 0-1

[Event "*** Titled Tuesday Blitz"]
[Site "Chess.com"]
[Date "2020.04.14"]
[Round "2"]
[White "Cayse"]
[Black "tonyq11"]
[Result "1-0"]
[WhiteElo "2657"]
[BlackElo "2252"]
[TimeControl "180+1"]
[EndTime "10:17:21 PDT"]
[Termination "Cayse won by resignation"]

1. d4 {[%clk 0:03:00.9]} 1... d5 {[%clk 0:02:59.5]} 2. Bf4 {[%clk 0:03:00.3]}
2... Nf6 {[%clk 0:02:58.8]} 3. e3 {[%clk 0:02:58.8]} 3... c5 {[%clk 0:02:58.1]}
4. Nf3 {[%clk 0:02:58.3]} 4... e6 {[%clk 0:02:57.9]} 5. Nbd2 {[%clk 0:02:57.4]}
5... Bd6 {[%clk 0:02:57.6]} 6. dxc5 {[%clk 0:02:57.5]} 6... Bxf4 {[%clk
0:02:55.5]} 7. exf4 {[%clk 0:02:57.4]} 7... a5 {[%clk 0:02:53.8]} 8. Bd3 {[%clk
0:02:46.7]} 8... O-O {[%clk 0:02:50.2]} 9. O-O {[%clk 0:02:45.8]} 9... Nbd7
{[%clk 0:02:42.7]} 10. Nb3 {[%clk 0:02:45]} 10... a4 {[%clk 0:02:40.8]} 11. Nbd4
{[%clk 0:02:45]} 11... Nxc5 {[%clk 0:02:37.6]} 12. Ne5 {[%clk 0:02:45.5]} 12...
Nce4 {[%clk 0:02:33]} 13. c3 {[%clk 0:02:43.1]} 13... a3 {[%clk 0:02:26.8]} 14.
Qc2 {[%clk 0:02:38]} 14... axb2 {[%clk 0:02:25.6]} 15. Qxb2 {[%clk 0:02:38.9]}
15... Qa5 {[%clk 0:02:18.3]} 16. Rfc1 {[%clk 0:02:36.7]} 16... Nc5 {[%clk
0:02:13.8]} 17. Bb5 {[%clk 0:02:32.4]} 17... Qc7 {[%clk 0:01:54.8]} 18. c4
{[%clk 0:02:27.4]} 18... Qd6 {[%clk 0:01:27.2]} 19. a4 {[%clk 0:02:16]} 19...
Nfe4 {[%clk 0:01:07.4]} 20. cxd5 {[%clk 0:02:06.6]} 20... exd5 {[%clk
0:00:52.3]} 21. f3 {[%clk 0:01:59]} 21... Nf6 {[%clk 0:00:37.2]} 22. Qb4 {[%clk
0:01:50.1]} 22... Nce4 {[%clk 0:00:31.4]} 23. Qb2 {[%clk 0:01:30.8]} 23... Nc5
{[%clk 0:00:29]} 24. a5 {[%clk 0:01:05.5]} 24... Rd8 {[%clk 0:00:16.2]} 25. Qb4
{[%clk 0:00:51.4]} 25... Ne6 {[%clk 0:00:10.4]} 26. Qxd6 {[%clk 0:00:46.5]}
26... Rxd6 {[%clk 0:00:11.3]} 27. Nf5 {[%clk 0:00:44]} 27... Rd8 {[%clk
0:00:10.9]} 28. g3 {[%clk 0:00:38.5]} 28... Kf8 {[%clk 0:00:09.9]} 29. Ne3
{[%clk 0:00:36.2]} 29... d4 {[%clk 0:00:07.6]} 30. N3c4 {[%clk 0:00:35.3]} 30...
Nd5 {[%clk 0:00:08]} 31. Nb6 {[%clk 0:00:29.7]} 31... Nxb6 {[%clk 0:00:07.1]}
32. axb6 {[%clk 0:00:30.6]} 32... Rxa1 {[%clk 0:00:06.7]} 33. Rxa1 {[%clk
0:00:31.5]} 33... Ke7 {[%clk 0:00:06]} 34. Kf2 {[%clk 0:00:28.1]} 34... Nc5
{[%clk 0:00:06.1]} 35. Rc1 {[%clk 0:00:26]} 35... Nd7 {[%clk 0:00:02.3]} 36. Rc7
{[%clk 0:00:22.3]} 36... Kd6 {[%clk 0:00:02.1]} 37. Nxf7+ {[%clk 0:00:21.7]} 1-0

[Event "*** Titled Tuesday Blitz"]
[Site "Chess.com"]
[Date "2020.04.14"]
[Round "2"]
[White "Alex_Molchanov"]
[Black "Sueetin"]
[Result "1-0"]
[WhiteElo "2576"]
[BlackElo "2298"]
[TimeControl "180+1"]
[EndTime "10:17:23 PDT"]
[Termination "Alex_Molchanov won on time"]

1. d4 {[%clk 0:03:00.9]} 1... Nf6 {[%clk 0:02:59.4]} 2. c4 {[%clk 0:02:49.2]}
2... e6 {[%clk 0:02:56.9]} 3. Nf3 {[%clk 0:02:48.8]} 3... d5 {[%clk 0:02:55]} 4.
Nc3 {[%clk 0:02:46]} 4... Bb4 {[%clk 0:02:54.9]} 5. cxd5 {[%clk 0:02:43.8]} 5...
exd5 {[%clk 0:02:54.2]} 6. Bg5 {[%clk 0:02:43.3]} 6... O-O {[%clk 0:02:50.6]} 7.
e3 {[%clk 0:02:41.8]} 7... h6 {[%clk 0:02:47.4]} 8. Bxf6 {[%clk 0:02:40.4]} 8...
Qxf6 {[%clk 0:02:48.3]} 9. Be2 {[%clk 0:02:38.3]} 9... Be6 {[%clk 0:02:37.1]}
10. O-O {[%clk 0:02:36.8]} 10... Nc6 {[%clk 0:02:30.4]} 11. Rc1 {[%clk
0:02:34.2]} 11... a6 {[%clk 0:02:28.7]} 12. Na4 {[%clk 0:02:31.3]} 12... Rae8
{[%clk 0:02:05.3]} 13. Bxa6 {[%clk 0:02:19.7]} 13... Bc8 {[%clk 0:01:39.6]} 14.
Be2 {[%clk 0:02:13.4]} 14... Bd6 {[%clk 0:01:37.6]} 15. Nc5 {[%clk 0:02:05.6]}
15... Ne7 {[%clk 0:01:35.2]} 16. Nd3 {[%clk 0:01:49.8]} 16... Ng6 {[%clk
0:01:31]} 17. b4 {[%clk 0:01:39.2]} 17... Re4 {[%clk 0:01:29.6]} 18. Nfe5 {[%clk
0:01:17.2]} 18... Nh4 {[%clk 0:00:53.1]} 19. Bf3 {[%clk 0:00:56.7]} 19... Qg5
{[%clk 0:00:45.1]} 20. Nf4 {[%clk 0:00:29.5]} 20... f6 {[%clk 0:00:20.1]} 21.
Ned3 {[%clk 0:00:17.8]} 21... f5 {[%clk 0:00:11.9]} 22. g3 {[%clk 0:00:17.5]}
22... Nxf3+ {[%clk 0:00:07.5]} 23. Qxf3 {[%clk 0:00:18.4]} 23... c6 {[%clk
0:00:06.5]} 24. b5 {[%clk 0:00:17.9]} 24... Bd7 {[%clk 0:00:06.6]} 25. bxc6
{[%clk 0:00:16.9]} 25... bxc6 {[%clk 0:00:07.5]} 26. Nc5 {[%clk 0:00:16.3]}
26... Be8 {[%clk 0:00:05.3]} 27. a4 {[%clk 0:00:12.9]} 27... Qf6 {[%clk
0:00:04.7]} 28. a5 {[%clk 0:00:12.4]} 28... Bxf4 {[%clk 0:00:01.7]} 29. Nxe4
{[%clk 0:00:09.5]} 1-0

[Event "*** Titled Tuesday Blitz"]
[Site "Chess.com"]
[Date "2020.04.14"]
[Round "2"]
[White "TomsKantans"]
[Black "FeketeBarika"]
[Result "1-0"]
[WhiteElo "2658"]
[BlackElo "2309"]
[TimeControl "180+1"]
[EndTime "10:17:24 PDT"]
[Termination "TomsKantans won by resignation"]

1. e4 {[%clk 0:03:00.9]} 1... e6 {[%clk 0:03:00.9]} 2. c4 {[%clk 0:02:58.3]}
2... d5 {[%clk 0:03:01.8]} 3. cxd5 {[%clk 0:02:59.2]} 3... exd5 {[%clk
0:03:02.1]} 4. exd5 {[%clk 0:03:00.1]} 4... Qxd5 {[%clk 0:03:02.6]} 5. Nc3
{[%clk 0:02:59.7]} 5... Qd8 {[%clk 0:03:02.7]} 6. d4 {[%clk 0:02:59.7]} 6... Nf6
{[%clk 0:03:02.9]} 7. Bd3 {[%clk 0:02:56.5]} 7... Be7 {[%clk 0:03:02.9]} 8. Nf3
{[%clk 0:02:56.3]} 8... O-O {[%clk 0:03:03.4]} 9. h3 {[%clk 0:02:56.5]} 9... c6
{[%clk 0:03:01.4]} 10. O-O {[%clk 0:02:56.3]} 10... Be6 {[%clk 0:03:00.9]} 11.
Re1 {[%clk 0:02:56.3]} 11... Nbd7 {[%clk 0:03:00.6]} 12. Ng5 {[%clk 0:02:43.9]}
12... Bd5 {[%clk 0:02:36.1]} 13. Nxd5 {[%clk 0:02:39.6]} 13... cxd5 {[%clk
0:02:37]} 14. Bf4 {[%clk 0:02:28.1]} 14... h6 {[%clk 0:02:31.8]} 15. Nf3 {[%clk
0:02:28.1]} 15... Rc8 {[%clk 0:02:29.8]} 16. Qb3 {[%clk 0:02:26.2]} 16... Nb6
{[%clk 0:02:24.7]} 17. a4 {[%clk 0:02:22.4]} 17... Qd7 {[%clk 0:02:10.4]} 18. a5
{[%clk 0:01:56.2]} 18... Nc4 {[%clk 0:02:09]} 19. Ne5 {[%clk 0:01:56]} 19...
Nxe5 {[%clk 0:02:06.8]} 20. dxe5 {[%clk 0:01:55.1]} 20... Nh5 {[%clk 0:02:05.7]}
21. Be3 {[%clk 0:01:47.1]} 21... a6 {[%clk 0:02:02.9]} 22. Rad1 {[%clk
0:01:44.6]} 22... Bg5 {[%clk 0:01:55.9]} 23. Bb1 {[%clk 0:01:32.6]} 23... g6
{[%clk 0:01:42.3]} 24. Bxg5 {[%clk 0:01:10.1]} 24... hxg5 {[%clk 0:01:43.2]} 25.
Rxd5 {[%clk 0:01:08.3]} 25... Qc7 {[%clk 0:01:38.8]} 26. e6 {[%clk 0:01:04.9]}
26... Nf4 {[%clk 0:01:38.4]} 27. Rxg5 {[%clk 0:01:01.3]} 27... Nxe6 {[%clk
0:01:37]} 28. Rg4 {[%clk 0:00:41.3]} 28... Rce8 {[%clk 0:01:17.9]} 29. Bxg6
{[%clk 0:00:36.9]} 29... fxg6 {[%clk 0:01:13.5]} 30. Rxe6 {[%clk 0:00:36.5]}
30... Rxe6 {[%clk 0:01:02.9]} 31. Qxe6+ {[%clk 0:00:19.9]} 31... Rf7 {[%clk
0:01:00.5]} 32. Qxg6+ {[%clk 0:00:18.8]} 32... Kf8 {[%clk 0:00:51.5]} 33. Qg8+
{[%clk 0:00:18.1]} 33... Ke7 {[%clk 0:00:45.8]} 34. Re4+ {[%clk 0:00:19]} 34...
Kd6 {[%clk 0:00:45]} 35. Qg6+ {[%clk 0:00:16]} 35... Kc5 {[%clk 0:00:41.4]} 36.
Qh5+ {[%clk 0:00:13.4]} 36... Kd6 {[%clk 0:00:30.9]} 37. Qe5+ {[%clk 0:00:13]}
37... Kd7 {[%clk 0:00:28.4]} 38. Qe6+ {[%clk 0:00:10.3]} 1-0

[Event "*** Titled Tuesday Blitz"]
[Site "Chess.com"]
[Date "2020.04.14"]
[Round "2"]
[White "hitaman"]
[Black "Dare-Dare"]
[Result "1-0"]
[WhiteElo "2646"]
[BlackElo "2188"]
[TimeControl "180+1"]
[EndTime "10:17:25 PDT"]
[Termination "hitaman won by resignation"]

1. d4 {[%clk 0:03:00.9]} 1... d6 {[%clk 0:02:56.7]} 2. Nf3 {[%clk 0:02:51.4]}
2... f5 {[%clk 0:02:56.5]} 3. g3 {[%clk 0:02:50.8]} 3... Nf6 {[%clk 0:02:56.6]}
4. Bg2 {[%clk 0:02:51.2]} 4... g6 {[%clk 0:02:56.9]} 5. b3 {[%clk 0:02:50.9]}
5... Bg7 {[%clk 0:02:57.5]} 6. Bb2 {[%clk 0:02:51.2]} 6... O-O {[%clk
0:02:58.2]} 7. O-O {[%clk 0:02:51.1]} 7... c6 {[%clk 0:02:58.9]} 8. Nbd2 {[%clk
0:02:48.9]} 8... Qc7 {[%clk 0:02:59.1]} 9. c4 {[%clk 0:02:46.9]} 9... Re8 {[%clk
0:02:59.4]} 10. Re1 {[%clk 0:02:43.7]} 10... e5 {[%clk 0:02:59.7]} 11. dxe5
{[%clk 0:02:43.4]} 11... dxe5 {[%clk 0:03:00.6]} 12. e4 {[%clk 0:02:43.3]} 12...
Nxe4 {[%clk 0:02:46.9]} 13. Nxe4 {[%clk 0:02:40.8]} 13... fxe4 {[%clk
0:02:47.8]} 14. Ng5 {[%clk 0:02:33.7]} 14... Bf5 {[%clk 0:02:47.6]} 15. Nxe4
{[%clk 0:02:26.6]} 15... Rd8 {[%clk 0:02:40.1]} 16. Qe2 {[%clk 0:02:22.6]} 16...
Nd7 {[%clk 0:02:34.6]} 17. c5 {[%clk 0:02:20.3]} 17... Kh8 {[%clk 0:02:21.4]}
18. Nd6 {[%clk 0:01:52]} 18... Nxc5 {[%clk 0:02:08.4]} 19. Nxf5 {[%clk
0:01:50.6]} 19... gxf5 {[%clk 0:02:00.1]} 20. Bxe5 {[%clk 0:01:49.2]} 20... Qf7
{[%clk 0:01:49.3]} 21. Bxg7+ {[%clk 0:01:31.4]} 21... Qxg7 {[%clk 0:01:50.2]}
22. Qe5 {[%clk 0:01:23.8]} 22... Ne4 {[%clk 0:01:01.5]} 23. Qxg7+ {[%clk
0:01:00.1]} 23... Kxg7 {[%clk 0:01:02.4]} 24. Bxe4 {[%clk 0:01:00.5]} 24... fxe4
{[%clk 0:01:03.3]} 25. Rxe4 {[%clk 0:01:00.8]} 25... Re8 {[%clk 0:01:01.9]} 26.
Rae1 {[%clk 0:00:59.8]} 26... Rxe4 {[%clk 0:01:01.4]} 27. Rxe4 {[%clk
0:01:00.7]} 27... Kf6 {[%clk 0:01:01.9]} 28. Rh4 {[%clk 0:00:51.4]} 28... Kg6
{[%clk 0:01:00.6]} 29. Rd4 {[%clk 0:00:51.6]} 29... c5 {[%clk 0:00:42.5]} 30.
Rd6+ {[%clk 0:00:47.4]} 30... Kf5 {[%clk 0:00:25.1]} 31. Rd5+ {[%clk 0:00:46.4]}
31... Ke4 {[%clk 0:00:25.4]} 32. Rxc5 {[%clk 0:00:46.6]} 32... Rd8 {[%clk
0:00:22.6]} 33. Rc7 {[%clk 0:00:43.6]} 33... Kf3 {[%clk 0:00:19.7]} 34. Rf7+
{[%clk 0:00:43.1]} 34... Ke2 {[%clk 0:00:18.1]} 35. Rxb7 {[%clk 0:00:41.5]}
35... a5 {[%clk 0:00:17.7]} 36. Rxh7 {[%clk 0:00:40.6]} 36... Rf8 {[%clk
0:00:16.7]} 37. Re7+ {[%clk 0:00:39.5]} 37... Kd2 {[%clk 0:00:12.1]} 38. h4
{[%clk 0:00:37.8]} 38... Kc2 {[%clk 0:00:11.7]} 39. Re5 {[%clk 0:00:38.3]} 39...
Ra8 {[%clk 0:00:10.7]} 40. h5 {[%clk 0:00:33.2]} 40... Kb2 {[%clk 0:00:10.9]}
41. h6 {[%clk 0:00:33.6]} 41... Kxa2 {[%clk 0:00:10.6]} 42. h7 {[%clk
0:00:29.2]} 42... Kxb3 {[%clk 0:00:03.3]} 43. Rxa5 {[%clk 0:00:28.7]} 1-0

[Event "*** Titled Tuesday Blitz"]
[Site "Chess.com"]
[Date "2020.04.14"]
[Round "2"]
[White "konradrutkowski"]
[Black "viktorskliarov"]
[Result "0-1"]
[WhiteElo "2238"]
[BlackElo "2647"]
[TimeControl "180+1"]
[EndTime "10:17:26 PDT"]
[Termination "viktorskliarov won by checkmate"]

1. e4 {[%clk 0:03:00.9]} 1... c5 {[%clk 0:02:52.9]} 2. Nf3 {[%clk 0:03:00.9]}
2... Nc6 {[%clk 0:02:53.2]} 3. Bb5 {[%clk 0:02:55.3]} 3... e6 {[%clk 0:02:52.8]}
4. O-O {[%clk 0:02:54.3]} 4... Nge7 {[%clk 0:02:52.5]} 5. Re1 {[%clk 0:02:49.5]}
5... a6 {[%clk 0:02:47.1]} 6. Bf1 {[%clk 0:02:49.2]} 6... Nd4 {[%clk 0:02:44]}
7. c3 {[%clk 0:02:42.5]} 7... Nxf3+ {[%clk 0:02:43.1]} 8. Qxf3 {[%clk
0:02:43.4]} 8... Nc6 {[%clk 0:02:41]} 9. Qd1 {[%clk 0:02:41.7]} 9... Qf6 {[%clk
0:02:29.6]} 10. Na3 {[%clk 0:02:30.4]} 10... g6 {[%clk 0:02:28.7]} 11. Nc4
{[%clk 0:02:27.7]} 11... b5 {[%clk 0:02:22.5]} 12. e5 {[%clk 0:02:16.3]} 12...
Qd8 {[%clk 0:02:22.2]} 13. Nd6+ {[%clk 0:02:13.4]} 13... Bxd6 {[%clk 0:02:22]}
14. exd6 {[%clk 0:02:14.3]} 14... O-O {[%clk 0:02:22.4]} 15. d4 {[%clk 0:02:10]}
15... cxd4 {[%clk 0:02:22.1]} 16. Bh6 {[%clk 0:02:09.5]} 16... Re8 {[%clk
0:02:12.6]} 17. Qd2 {[%clk 0:02:03.6]} 17... dxc3 {[%clk 0:02:04]} 18. Qxc3
{[%clk 0:02:02.1]} 18... f6 {[%clk 0:02:00.5]} 19. h4 {[%clk 0:01:53.9]} 19...
Bb7 {[%clk 0:01:54.1]} 20. Re3 {[%clk 0:01:53.3]} 20... b4 {[%clk 0:01:48.6]}
21. Qd2 {[%clk 0:01:48.1]} 21... Qa5 {[%clk 0:01:45.3]} 22. Rg3 {[%clk
0:01:28.1]} 22... Kf7 {[%clk 0:01:11.6]} 23. Be2 {[%clk 0:01:23.4]} 23... Rac8
{[%clk 0:01:03.2]} 24. h5 {[%clk 0:01:15.8]} 24... Ne5 {[%clk 0:01:03]} 25.
hxg6+ {[%clk 0:01:12.8]} 25... hxg6 {[%clk 0:01:03.9]} 26. f4 {[%clk 0:01:00.5]}
26... Nc4 {[%clk 0:00:34.4]} 27. Qd3 {[%clk 0:00:53.4]} 27... Qf5 {[%clk
0:00:28.4]} 28. Qb3 {[%clk 0:00:31.1]} 28... Nxd6 {[%clk 0:00:25.3]} 29. Bd3
{[%clk 0:00:23.7]} 29... Be4 {[%clk 0:00:25]} 30. Qxb4 {[%clk 0:00:20.2]} 30...
Qc5+ {[%clk 0:00:24.6]} 31. Qxc5 {[%clk 0:00:20]} 31... Rxc5 {[%clk 0:00:25.5]}
32. Bxe4 {[%clk 0:00:15.7]} 32... Nxe4 {[%clk 0:00:26.4]} 33. Rh3 {[%clk
0:00:16.3]} 33... Rh8 {[%clk 0:00:25.2]} 34. Re1 {[%clk 0:00:15.2]} 34... d5
{[%clk 0:00:23.7]} 35. g4 {[%clk 0:00:12]} 35... Rc2 {[%clk 0:00:21.6]} 36. f5
{[%clk 0:00:07.7]} 36... gxf5 {[%clk 0:00:21.7]} 37. gxf5 {[%clk 0:00:07.9]}
37... Rg8+ {[%clk 0:00:22]} 38. Kf1 {[%clk 0:00:04.9]} 38... Rf2# {[%clk
0:00:21.2]} 0-1

[Event "*** Titled Tuesday Blitz"]
[Site "Chess.com"]
[Date "2020.04.14"]
[Round "2"]
[White "dey2580"]
[Black "GukeshDommaraju"]
[Result "1/2-1/2"]
[WhiteElo "2479"]
[BlackElo "2700"]
[TimeControl "180+1"]
[EndTime "10:17:27 PDT"]
[Termination "Game drawn by repetition"]

1. d4 {[%clk 0:03:00.9]} 1... Nf6 {[%clk 0:02:59.5]} 2. Nf3 {[%clk 0:03:00.6]}
2... e6 {[%clk 0:02:58.3]} 3. e3 {[%clk 0:02:57.5]} 3... b6 {[%clk 0:02:55.6]}
4. Bd3 {[%clk 0:02:56.3]} 4... Bb7 {[%clk 0:02:55.7]} 5. O-O {[%clk 0:02:56.2]}
5... Be7 {[%clk 0:02:55.3]} 6. b3 {[%clk 0:02:54.4]} 6... O-O {[%clk 0:02:55]}
7. Bb2 {[%clk 0:02:54.8]} 7... d5 {[%clk 0:02:55.1]} 8. c4 {[%clk 0:02:54.1]}
8... Nbd7 {[%clk 0:02:55]} 9. Nc3 {[%clk 0:02:54.4]} 9... a6 {[%clk 0:02:54.2]}
10. Qe2 {[%clk 0:02:54.2]} 10... Re8 {[%clk 0:02:54.3]} 11. e4 {[%clk
0:02:51.6]} 11... dxe4 {[%clk 0:02:39.3]} 12. Nxe4 {[%clk 0:02:51.2]} 12... c5
{[%clk 0:02:38.5]} 13. Rad1 {[%clk 0:02:45.8]} 13... cxd4 {[%clk 0:02:29.4]} 14.
Nxd4 {[%clk 0:02:43.4]} 14... Qc7 {[%clk 0:02:25.1]} 15. Ng5 {[%clk 0:02:29.9]}
15... Bc5 {[%clk 0:02:20.6]} 16. Ndf3 {[%clk 0:02:22]} 16... Rad8 {[%clk
0:01:51.9]} 17. h3 {[%clk 0:02:17.1]} 17... Qf4 {[%clk 0:01:42.1]} 18. Bc1
{[%clk 0:02:09.3]} 18... Qc7 {[%clk 0:01:35]} 19. Bb2 {[%clk 0:01:51.3]} 19...
h6 {[%clk 0:01:33.8]} 20. Ne4 {[%clk 0:01:51]} 20... Be7 {[%clk 0:01:28.2]} 21.
Kh1 {[%clk 0:01:40.7]} 21... Qf4 {[%clk 0:01:17.8]} 22. Bc1 {[%clk 0:01:37.1]}
22... Qc7 {[%clk 0:01:16.7]} 23. Bb2 {[%clk 0:01:12.7]} 23... Nxe4 {[%clk
0:01:16.5]} 24. Bxe4 {[%clk 0:01:12.6]} 24... Bf6 {[%clk 0:01:16.9]} 25. Bxb7
{[%clk 0:01:00]} 25... Qxb7 {[%clk 0:01:16.6]} 26. Bxf6 {[%clk 0:00:54.4]} 26...
Nxf6 {[%clk 0:01:17.5]} 27. Ne5 {[%clk 0:00:54.7]} 27... Qc7 {[%clk 0:01:09.4]}
28. f4 {[%clk 0:00:48.4]} 28... Rxd1 {[%clk 0:01:08]} 29. Rxd1 {[%clk
0:00:48.1]} 29... Rd8 {[%clk 0:01:08.8]} 30. Rd3 {[%clk 0:00:45]} 30... h5
{[%clk 0:00:56.2]} 31. Qd1 {[%clk 0:00:37.1]} 31... Rxd3 {[%clk 0:00:45.5]} 32.
Qxd3 {[%clk 0:00:36.7]} 32... g6 {[%clk 0:00:45.9]} 33. Qd4 {[%clk 0:00:35.7]}
33... Ne8 {[%clk 0:00:31.4]} 34. b4 {[%clk 0:00:32.5]} 34... Nd6 {[%clk
0:00:31.4]} 35. c5 {[%clk 0:00:29.7]} 35... Nf5 {[%clk 0:00:31]} 36. Qc4 {[%clk
0:00:25.6]} 36... bxc5 {[%clk 0:00:28.7]} 37. bxc5 {[%clk 0:00:23.9]} 37... h4
{[%clk 0:00:28.3]} 38. c6 {[%clk 0:00:20.8]} 38... Qa5 {[%clk 0:00:17.6]} 39. c7
{[%clk 0:00:20.3]} 39... Qe1+ {[%clk 0:00:17.4]} 40. Kh2 {[%clk 0:00:20.7]}
40... Qg3+ {[%clk 0:00:12.9]} 41. Kh1 {[%clk 0:00:20]} 41... Qe1+ {[%clk
0:00:12.6]} 42. Kh2 {[%clk 0:00:20.5]} 42... Qg3+ {[%clk 0:00:12.5]} 43. Kh1
{[%clk 0:00:20.9]} 43... Qe1+ {[%clk 0:00:10.5]} 1/2-1/2

[Event "*** Titled Tuesday Blitz"]
[Site "Chess.com"]
[Date "2020.04.14"]
[Round "2"]
[White "Beca95"]
[Black "juniortay"]
[Result "1-0"]
[WhiteElo "2898"]
[BlackElo "2478"]
[TimeControl "180+1"]
[EndTime "10:17:27 PDT"]
[Termination "Beca95 won on time"]

1. Nf3 {[%clk 0:03:00.9]} 1... d5 {[%clk 0:02:59.3]} 2. e3 {[%clk 0:03:00.5]}
2... Nf6 {[%clk 0:02:56]} 3. c4 {[%clk 0:03:00.4]} 3... e6 {[%clk 0:02:55.5]} 4.
Nc3 {[%clk 0:03:00.6]} 4... c5 {[%clk 0:02:55.7]} 5. cxd5 {[%clk 0:03:00.8]}
5... exd5 {[%clk 0:02:56.6]} 6. d4 {[%clk 0:02:59.4]} 6... Nc6 {[%clk
0:02:56.9]} 7. Bb5 {[%clk 0:02:58.6]} 7... cxd4 {[%clk 0:02:56.9]} 8. Nxd4
{[%clk 0:02:58.3]} 8... Bd7 {[%clk 0:02:57.2]} 9. O-O {[%clk 0:02:57.8]} 9...
Bd6 {[%clk 0:02:57.2]} 10. Nf3 {[%clk 0:02:56.5]} 10... a6 {[%clk 0:02:55.7]}
11. Be2 {[%clk 0:02:56.1]} 11... Be6 {[%clk 0:02:54.7]} 12. b3 {[%clk
0:02:56.4]} 12... O-O {[%clk 0:02:54.7]} 13. Bb2 {[%clk 0:02:56.7]} 13... Bc7
{[%clk 0:02:54.5]} 14. Re1 {[%clk 0:02:56]} 14... Qd6 {[%clk 0:02:53.8]} 15. g3
{[%clk 0:02:56.2]} 15... Rad8 {[%clk 0:02:53.6]} 16. Rc1 {[%clk 0:02:49.2]}
16... Rfe8 {[%clk 0:02:53.4]} 17. Na4 {[%clk 0:02:47.8]} 17... Ne4 {[%clk
0:02:52.8]} 18. a3 {[%clk 0:02:26.3]} 18... Bc8 {[%clk 0:02:51.4]} 19. b4 {[%clk
0:02:25.2]} 19... Qh6 {[%clk 0:02:49]} 20. Nc5 {[%clk 0:02:21.9]} 20... Nxf2
{[%clk 0:02:41]} 21. Kxf2 {[%clk 0:02:20.1]} 21... Qxe3+ {[%clk 0:02:40.3]} 22.
Kg2 {[%clk 0:02:17.9]} 22... Rd6 {[%clk 0:01:49.2]} 23. Bf1 {[%clk 0:02:05.2]}
23... d4 {[%clk 0:01:11.8]} 24. Rxe3 {[%clk 0:02:03.3]} 24... dxe3 {[%clk
0:01:12.7]} 25. Qe1 {[%clk 0:01:46.5]} 25... Bg4 {[%clk 0:01:03.8]} 26. Be2
{[%clk 0:01:42.8]} 26... Bxf3+ {[%clk 0:00:50.6]} 27. Kxf3 {[%clk 0:01:41.3]}
27... Rd2 {[%clk 0:00:23.7]} 28. Bc3 {[%clk 0:01:26.7]} 28... Ra2 {[%clk
0:00:22.4]} 29. Rd1 {[%clk 0:00:55.2]} 29... Rxa3 {[%clk 0:00:19.8]} 30. Rd7
{[%clk 0:00:51]} 30... Be5 {[%clk 0:00:15.8]} 31. Bxe5 {[%clk 0:00:40.6]} 31...
Nxe5+ {[%clk 0:00:16.7]} 32. Kg2 {[%clk 0:00:37.4]} 32... Ra2 {[%clk 0:00:16.6]}
33. Rd4 {[%clk 0:00:31.6]} 33... Nc6 {[%clk 0:00:07.2]} 34. Re4 {[%clk
0:00:31.5]} 34... Rd8 {[%clk 0:00:06.6]} 35. Rxe3 {[%clk 0:00:30.7]} 35... Nxb4
{[%clk 0:00:07]} 36. Qxb4 {[%clk 0:00:29.8]} 36... h6 {[%clk 0:00:05.2]} 37. Qb3
{[%clk 0:00:28.5]} 37... Rad2 {[%clk 0:00:04.6]} 38. Kh3 {[%clk 0:00:28.4]}
38... g5 {[%clk 0:00:03]} 39. Bh5 {[%clk 0:00:27.4]} 39... Kg7 {[%clk
0:00:01.5]} 40. Qxf7+ {[%clk 0:00:26.2]} 1-0